bitfinex-derivatives/quotes_SOLF0:USTF0_20250106
["timestamp","ask_amount","ask_price","bid_price","bid_amount"]
[1736148285711,10.05076176,214.46,214.43,2.3323]
[1736148286113,7.35076176,214.46,214.43,2.3323]
[1736148287205,2.7,214.47,214.44,2.3321]
[1736148287411,2.7,214.5,214.42,7.35076176]
[1736148287609,2.7,214.5,214.44,7.35076176]
[1736148287815,7.35076176,214.51,214.44,7.35076176]
[1736148288014,10.05076176,214.51,214.44,7.35076176]
[1736148288214,2.7,214.51,214.44,7.35076176]
[1736148288409,10.05076176,214.51,214.44,7.35076176]
[1736148288812,7.35076176,214.51,214.44,7.35076176]
[1736148289013,7.35076176,214.51,214.49,2.3316]
[1736148289318,3.74617993,214.57,214.48,7.35076176]
[1736148289515,10.05076176,214.56,214.48,7.35076176]
[1736148290111,7.35076176,214.56,214.48,7.35076176]
[1736148290410,128.5745687,214.63,214.5,7.35076176]
[1736148290713,7.35076176,214.57,214.5,7.35076176]
[1736148290919,2.7,214.62,214.5,7.35076176]
[1736148291113,7.35076176,214.58,214.5,7.35076176]
[1736148291309,128.5745687,214.67,214.54,7.35076176]
[1736148291515,7.35076176,214.66,214.58,7.35076176]
[1736148292314,7.35076176,214.64,214.58,7.35076176]
[1736148292514,7.35076176,214.64,214.59,2.3305]
[1736148293014,2.3298,214.66,214.59,2.3305]
[1736148293221,7.35076176,214.65,214.59,2.3305]
[1736148293512,7.35076176,214.65,214.6,2.3304]
[1736148294323,7.35076176,214.65,214.6,9.68116176]
[1736148295515,9.68066176,214.65,214.6,9.68116176]
[1736148296524,2.3299,214.65,214.6,9.68116176]
[1736148296822,9.68066176,214.65,214.6,9.68116176]
[1736148297023,9.68066176,214.65,214.6,2.3304]
[1736148297222,9.68066176,214.65,214.58,7.35076176]
[1736148297223,2.3301,214.64,214.58,7.35076176]
[1736148297721,2.3301,214.64,214.59,2.3305]
[1736148300519,7.35076176,214.61,214.55,7.35076176]
[1736148300718,7.35076176,214.61,214.53,2.68]
[1736148300925,2.3307,214.59,214.53,12.36186176]
[1736148301124,2.3307,214.59,214.53,10.03076176]
[1736148301825,7.35076176,214.61,214.53,10.03076176]
[1736148302027,7.35076176,214.61,214.58,2.3307]
[1736148302221,9.68096176,214.63,214.58,2.3307]
[1736148302421,7.35076176,214.63,214.57,7.35076176]
[1736148303226,10.03076176,214.65,214.57,7.35076176]
[1736148304422,10.03076176,214.65,214.6,2.3304]
[1736148304923,10.03076176,214.65,214.57,7.35076176]
[1736148305128,7.35076176,214.65,214.61,2.3303]
[1736148307128,2.3296,214.68,214.59,7.35076176]
[1736148307330,10.03076176,214.69,214.61,7.35076176]
[1736148308026,12.36026176,214.69,214.61,7.35076176]
[1736148308227,7.35076176,214.71,214.63,7.35076176]
[1736148308427,53.36,214.85,214.63,7.35076176]
[1736148308623,7.35076176,214.73,214.69,2.3294]
[1736148308819,7.35076176,214.75,214.67,7.35076176]
[1736148309022,2.3288,214.75,214.7,2.3293]
[1736148309820,10.05076176,214.76,214.7,2.3293]
[1736148310027,2.329,214.74,214.7,2.3293]
[1736148310221,9.67976176,214.74,214.69,2.3295]
[1736148310535,2.7,214.76,214.65,1.5218]
[1736148310536,7.35076176,214.72,214.65,11.57256176]
[1736148310731,7.35076176,214.7,214.61,7.35076176]
[1736148311032,2.3298,214.66,214.61,7.35076176]
[1736148311233,7.35076176,214.68,214.61,7.35076176]
[1736148311430,2.7,214.71,214.59,2.7]
[1736148311431,7.35076176,214.7,214.63,7.35076176]
[1736148312434,7.35076176,214.68,214.61,7.35076176]
[1736148312729,7.35076176,214.68,214.59,10.05076176]
[1736148312933,2.3298,214.66,214.61,7.35076176]
[1736148313133,7.35076176,214.68,214.61,7.35076176]
[1736148314030,2.3299,214.65,214.61,2.3303]
[1736148315036,7.35076176,214.67,214.61,2.3303]
[1736148315232,2.3298,214.66,214.61,2.3303]
[1736148315535,7.35076176,214.67,214.61,2.3303]
[1736148316436,2.3299,214.65,214.61,2.3303]
[1736148317035,2.3301,214.64,214.6,2.3304]
[1736148317236,7.35076176,214.65,214.59,7.35076176]
[1736148317532,2.3302,214.63,214.57,7.35076176]
[1736148318332,7.35076176,214.61,214.54,2.9076]
[1736148318534,7.35076176,214.61,214.54,7.35076176]
[1736148318737,7.35076176,214.59,214.52,7.35076176]
[1736148318933,7.35076176,214.59,214.53,2.3312]
[1736148319138,2.3308,214.57,214.53,2.3312]
[1736148323841,9.68146176,214.59,214.54,2.3311]
[1736148324042,7.35076176,214.59,214.54,2.3311]
[1736148325540,2.3307,214.58,214.54,2.3311]
[1736148325941,7.35076176,214.59,214.53,10.0]
[1736148326145,2.3308,214.57,214.53,10.0]
[1736148327542,2.3308,214.57,214.53,12.3312]
[1736148327742,2.3307,214.58,214.53,10.0]
[1736148328145,2.3307,214.58,214.54,9.68176176]
[1736148328451,2.3303,214.61,214.54,7.35076176]
[1736148328647,2.7,214.61,214.56,2.3309]
[1736148328851,2.7,214.61,214.54,7.35076176]
[1736148329543,2.3306,214.59,214.54,9.68176176]
[1736148332550,10.05076176,214.63,214.56,7.35076176]
[1736148332947,2.7,214.63,214.56,7.35076176]
[1736148333153,2.3303,214.62,214.58,2.3307]
[1736148333452,10.05076176,214.63,214.54,1.4852]
[1736148333647,2.3307,214.58,214.55,2.331]
[1736148333951,2.3307,214.58,214.54,8.83596176]
[1736148334646,2.3307,214.58,214.54,1.4852]
[1736148334845,2.3308,214.57,214.54,1.4852]
[1736148335444,2.331,214.55,214.53,10.0]
[1736148336450,12.38166176,214.57,214.53,10.0]
[1736148336642,10.05076176,214.57,214.53,10.0]
[1736148337353,2.7,214.57,214.53,10.0]
[1736148338152,2.7,214.57,214.53,12.3312]
[1736148338354,2.7,214.57,214.53,10.0]
[1736148339252,5.83241,214.67,214.56,7.35076176]
[1736148339450,160.7182109,214.73,214.64,7.35076176]
[1736148339849,2.3294,214.7,214.64,9.68076176]
[1736148340051,7.35076176,214.74,214.64,9.68076176]
[1736148340052,2.7,214.71,214.64,9.68076176]
[1736148340456,7.35076176,214.7,214.62,7.35076176]
[1736148340654,7.35076176,214.7,214.62,9.68096176]
[1736148341056,2.3297,214.67,214.6,2.3303]
[1736148341258,2.7,214.71,214.57,11.46493401]
[1736148342556,2.3297,214.67,214.61,2.3303]
[1736148343259,2.3297,214.67,214.57,11.46493401]
[1736148343465,2.3297,214.67,214.62,2.3302]
[1736148344157,2.3296,214.69,214.63,2.3301]
[1736148348159,2.3296,214.69,214.57,12.85433401]
[1736148349250,2.3296,214.69,214.63,2.33]
[1736148349462,2.3296,214.69,214.57,12.85433401]
[1736148349958,2.7,214.71,214.57,12.85433401]
[1736148350159,2.3296,214.68,214.57,12.85433401]
[1736148350359,11.46493401,214.7,214.57,12.85433401]
[1736148350560,11.46493401,214.7,214.6,2.3304]
[1736148350755,2.3299,214.66,214.57,12.85433401]
[1736148350963,5.0299,214.66,214.57,12.85433401]
[1736148351162,5.0299,214.66,214.6,2.3303]
[1736148351563,5.0299,214.66,214.57,12.85433401]
[1736148352159,5.0299,214.66,214.61,2.3303]
[1736148359461,2.3299,214.66,214.61,2.3303]
[1736148359662,2.3299,214.66,214.62,2.3302]
[1736148367271,2.7,214.67,214.62,7.33876501]
[1736148367468,2.7,214.67,214.64,7.33876501]
[1736148367878,2.7,214.67,214.65,2.3299]
[1736148371673,2.7,214.67,214.63,2.33]
[1736148373475,2.3298,214.66,214.63,2.33]
[1736148381479,2.7,214.67,214.62,7.33876501]
[1736148382582,2.3298,214.66,214.62,9.66896501]
[1736148384879,2.3298,214.66,214.62,7.33876501]
[1736148385080,2.3298,214.66,214.63,2.3301]
[1736148387681,2.3302,214.62,214.61,10.0]
[1736148387878,5.0102,214.62,214.61,10.0]
[1736148388076,12.34896501,214.62,214.61,10.0]
[1736148388282,2.68,214.62,214.61,10.0]
[1736148389288,7.33876501,214.69,214.61,10.0]
[1736148389592,2.68,214.68,214.63,7.33876501]
[1736148390491,5.0096,214.68,214.64,2.33]
[1736148390685,2.68,214.69,214.63,7.33876501]
[1736148391191,2.68,214.69,214.66,2.3298]
[1736148391894,2.68,214.69,214.64,2.3299]
[1736148392192,2.68,214.69,214.65,7.33876501]
[1736148393383,2.68,214.69,214.66,2.3297]
[1736148393791,2.3294,214.71,214.65,7.33876501]
[1736148393990,2.68,214.7,214.67,9.66846501]
[1736148394188,160.7182109,214.81,214.62,3.0642]
[1736148394189,2.68,214.71,214.69,7.33876501]
[1736148394387,2.68,214.72,214.69,7.33876501]
[1736148394586,7.33876501,214.76,214.69,7.33876501]
[1736148394788,2.68,214.75,214.71,7.33876501]
[1736148395086,2.68,214.77,214.73,7.33876501]
[1736148395387,2.68,214.8,214.75,7.33876501]
[1736148396093,2.3283,214.8,214.75,7.33876501]
[1736148396288,5.0083,214.8,214.75,7.33876501]
[1736148396484,5.0083,214.8,214.77,7.33876501]
[1736148396485,2.68,214.8,214.77,7.33876501]
[1736148398290,5.0083,214.8,214.77,7.33876501]
[1736148398691,2.68,214.8,214.75,7.33876501]
[1736148398892,2.3285,214.79,214.75,7.33876501]
[1736148399890,7.33876501,214.78,214.63,1.4639]
[1736148400093,7.33876501,214.78,214.71,7.33876501]
[1736148400892,2.3287,214.76,214.71,7.33876501]
[1736148401093,7.33876501,214.78,214.71,7.33876501]
[1736148401695,7.33876501,214.74,214.64,2.68]
[1736148401996,10.01876501,214.74,214.67,7.33876501]
[1736148402398,10.01876501,214.74,214.65,2.3298]
[1736148402599,10.01876501,214.74,214.66,7.33876501]
[1736148403597,10.01876501,214.74,214.68,7.33876501]
[1736148404687,10.01876501,214.74,214.63,1.4639]
[1736148404889,7.33876501,214.72,214.66,7.33876501]
[1736148405400,2.68,214.74,214.66,7.33876501]
[1736148405600,10.01876501,214.74,214.66,7.33876501]
[1736148406488,8.06894368,214.83,214.7,7.33876501]
[1736148406690,7.33876501,214.76,214.7,7.33876501]
[1736148406889,2.68,214.75,214.7,7.33876501]
[1736148408101,2.68,214.75,214.63,4.1439]
[1736148408293,2.68,214.75,214.69,7.33876501]
[1736148409598,2.3289,214.74,214.69,9.66816501]
[1736148410991,7.33876501,214.74,214.63,1.4639]
[1736148411196,7.33876501,214.74,214.66,7.33876501]
[1736148411197,2.3294,214.7,214.66,7.33876501]
[1736148413096,2.3291,214.73,214.68,9.66836501]
[1736148414995,10.01876501,214.75,214.68,9.66836501]
[1736148415195,2.3292,214.72,214.68,9.66836501]
[1736148416097,2.3292,214.72,214.68,7.33876501]
[1736148416904,10.01876501,214.75,214.66,7.33876501]
[1736148416905,2.3295,214.7,214.66,7.33876501]
[1736148418006,2.3295,214.69,214.66,7.33876501]
[1736148418505,7.33876501,214.69,214.62,3.0642]
[1736148418708,7.33876501,214.67,214.62,3.0642]
[1736148419006,2.3301,214.64,214.62,3.0642]
[1736148419702,7.33876501,214.67,214.62,3.0642]
[1736148419904,7.33876501,214.67,214.59,7.33876501]
[1736148420097,2.68,214.7,214.59,7.33876501]
[1736148420298,7.33876501,214.67,214.59,7.33876501]
[1736148420503,2.3299,214.65,214.6,2.3304]
[1736148421609,2.3299,214.65,214.59,7.33876501]
[1736148421610,2.3299,214.65,214.61,17.33876501]
[1736148421797,2.3297,214.67,214.62,2.3301]
[1736148422504,2.3297,214.67,214.63,2.3301]
[1736148424908,7.33876501,214.67,214.62,2.3302]
[1736148425107,2.3298,214.66,214.62,2.3302]
[1736148426811,2.33,214.64,214.61,12.3303]
[1736148427911,7.33876501,214.67,214.61,12.3303]
[1736148428207,2.3299,214.65,214.61,12.3303]
[1736148430108,2.3299,214.65,214.61,10.0]
[1736148430309,2.3295,214.7,214.64,7.33876501]
[1736148430506,2.68,214.68,214.64,7.33876501]
[1736148431010,2.68,214.68,214.65,2.3298]
[1736148431308,2.68,214.68,214.62,7.33876501]
[1736148431506,2.68,214.68,214.63,2.33]
[1736148431507,2.3297,214.67,214.63,2.33]
[1736148431810,7.33876501,214.67,214.61,10.0]
[1736148432012,7.33876501,214.67,214.61,17.33876501]
[1736148432213,2.3298,214.66,214.62,2.3302]
[1736148433209,2.68,214.68,214.62,2.3302]
[1736148433806,2.3299,214.66,214.62,2.3302]
[1736148434007,2.68,214.68,214.65,2.3299]
[1736148434906,5.0097,214.68,214.64,2.33]
[1736148435413,2.3297,214.68,214.64,2.33]
[1736148436909,20.23408114,214.8,214.67,2.3297]
[1736148436910,2.3293,214.71,214.67,2.3297]
[1736148437212,7.33876501,214.73,214.67,7.33876501]
[1736148437408,2.68,214.74,214.67,7.33876501]
[1736148438616,2.329,214.73,214.67,7.33876501]
[1736148439219,2.329,214.73,214.68,2.3296]
[1736148439615,2.68,214.74,214.68,2.3296]
[1736148439917,7.33876501,214.71,214.65,1.5025]
[1736148440315,2.3295,214.69,214.65,1.5025]
[1736148440514,7.33876501,214.71,214.65,1.5025]
[1736148441517,2.3294,214.7,214.66,2.3298]
[1736148446828,2.3292,214.72,214.68,2.3296]
[1736148447014,7.33876501,214.73,214.67,7.33876501]
[1736148448424,9.66776501,214.73,214.69,2.3294]
[1736148448819,7.33876501,214.73,214.67,7.33876501]
[1736148449018,2.3292,214.72,214.67,9.66846501]
[1736148449218,9.66796501,214.72,214.67,2.3297]
[1736148450826,9.66796501,214.72,214.68,2.3296]
[1736148456925,2.3292,214.72,214.68,2.3296]
[1736148465335,9.38921432,214.81,214.69,7.33876501]
[1736148465534,9.38921432,214.81,214.65,1.5025]
[1736148465535,7.33876501,214.79,214.71,7.33876501]
[1736148465738,7.33876501,214.79,214.73,7.33876501]
[1736148466441,9.66716501,214.79,214.74,2.3289]
[1736148466743,12.34716501,214.79,214.74,2.3289]
[1736148466943,9.66716501,214.79,214.74,2.3289]
[1736148467133,12.34716501,214.79,214.74,2.3289]
[1736148467339,5.0084,214.79,214.75,2.3288]
[1736148467538,2.68,214.79,214.75,2.3288]
[1736148468242,2.68,214.79,214.75,9.66756501]
[1736148468542,5.0084,214.79,214.75,9.66756501]
[1736148468746,5.0084,214.79,214.75,2.3288]
[1736148470139,2.3287,214.77,214.72,2.3291]
[1736148470338,2.3287,214.77,214.72,9.66786501]
[1736148470634,7.33876501,214.77,214.7,1.4484]
[1736148470834,2.3289,214.75,214.71,2.3292]
[1736148473141,2.3287,214.76,214.71,2.3292]
[1736148474042,9.66736501,214.77,214.73,2.329]
[1736148476546,7.33876501,214.75,214.72,2.3291]
[1736148480044,2.3287,214.76,214.72,2.3291]
[1736148483455,7.33876501,214.77,214.72,2.3291]
[1736148483651,2.3288,214.75,214.72,2.3291]
[1736148483849,9.66756501,214.75,214.72,2.3291]
[1736148485859,7.33876501,214.75,214.72,2.3291]
[1736148486457,2.3287,214.76,214.72,2.3291]
[1736148486658,2.3285,214.78,214.7,7.33876501]
[1736148486954,7.33876501,214.79,214.72,7.33876501]
[1736148487152,10.01876501,214.79,214.72,7.33876501]
[1736148487760,12.34716501,214.79,214.75,2.3288]
[1736148488762,7.33876501,214.77,214.72,7.33876501]
[1736148488956,9.66746501,214.77,214.72,2.3291]
[1736148489161,7.33876501,214.75,214.68,7.33876501]
[1736148489565,9.66766501,214.75,214.71,2.3292]
[1736148490370,7.33876501,214.75,214.67,7.33876501]
[1736148491163,7.33876501,214.73,214.69,2.3294]
[1736148492669,9.66786501,214.73,214.69,2.3294]
[1736148493067,7.33876501,214.73,214.67,7.33876501]
[1736148493261,2.68,214.74,214.71,2.3292]
[1736148496773,5.0089,214.74,214.71,2.3292]
[1736148498179,2.68,214.74,214.72,2.3291]
[1736148498374,2.68,214.74,214.69,7.33876501]
[1736148499281,2.68,214.74,214.7,2.3293]
[1736148499477,2.68,214.74,214.69,7.33876501]
[1736148500381,2.68,214.74,214.72,2.3291]
[1736148502681,5.009,214.74,214.7,2.3293]
[1736148507185,5.009,214.74,214.71,2.3292]
[1736148507487,2.68,214.74,214.69,7.33876501]
[1736148507779,7.33876501,214.77,214.69,7.33876501]
[1736148508483,7.33876501,214.77,214.76,2.3286]
[1736148510676,7.33876501,214.77,214.71,7.33876501]
[1736148510981,7.33876501,214.77,214.75,2.3288]
[1736148511780,2.3288,214.76,214.72,2.3291]
[1736148511979,7.33876501,214.75,214.69,7.33876501]
[1736148513485,9.66766501,214.75,214.71,2.3292]
[1736148516184,9.66766501,214.75,214.69,7.33876501]
[1736148516682,9.66766501,214.75,214.67,7.33876501]
[1736148517186,9.66776501,214.73,214.69,2.3295]
[1736148517488,12.34776501,214.73,214.69,2.3295]
[1736148517687,9.66806501,214.71,214.67,2.3297]
[1736148518478,7.33876501,214.71,214.67,2.3297]
[1736148519280,9.66806501,214.71,214.68,2.3295]
[1736148519483,2.68,214.73,214.68,2.3295]
[1736148519682,10.01876501,214.73,214.65,8.84126501]
[1736148521381,2.3292,214.72,214.65,8.84126501]
[1736148521584,2.3292,214.72,214.69,2.3295]
[1736148521787,7.33876501,214.71,214.69,2.3295]
[1736148522087,7.33876501,214.71,214.65,8.84126501]
[1736148522494,7.33876501,214.71,214.68,2.3295]
[1736148523382,7.33876501,214.71,214.69,2.3295]
[1736148525493,7.33876501,214.71,214.68,2.3296]
[1736148527592,2.3292,214.72,214.68,2.3296]
[1736148527791,2.3292,214.72,214.69,2.3295]
[1736148530501,2.3292,214.72,214.67,2.3296]
[1736148531587,10.01876501,214.73,214.67,2.3296]
[1736148531792,2.3293,214.71,214.67,2.3296]
[1736148532295,12.34786501,214.73,214.65,7.33876501]
[1736148532496,10.01876501,214.73,214.65,7.33876501]
[1736148533001,2.3292,214.72,214.68,2.3295]
[1736148534289,10.01876501,214.73,214.68,2.3295]
[1736148534490,2.3293,214.71,214.68,2.3295]
[1736148536499,2.3292,214.72,214.68,2.3295]
[1736148537005,7.33876501,214.71,214.68,2.3295]
[1736148540296,7.33876501,214.71,214.69,2.3294]
[1736148540499,2.3292,214.72,214.69,2.3294]
[1736148546101,7.33876501,214.71,214.64,1.4778]
[1736148546306,7.33876501,214.66,214.61,10.0]
[1736148547313,7.33876501,214.66,214.63,2.3301]
[1736148548512,9.66856501,214.66,214.63,2.3301]
[1736148551212,7.33876501,214.66,214.63,2.3301]
[1736148554520,2.68,214.67,214.61,17.33876501]
[1736148555919,2.68,214.67,214.65,2.3299]
[1736148559422,2.68,214.67,214.61,17.33876501]
[1736148559624,2.68,214.67,214.66,2.3298]
[1736148563822,2.68,214.68,214.66,2.3298]
[1736148564725,10.01876501,214.68,214.66,2.3298]
[1736148567018,12.34846501,214.68,214.63,2.3301]
[1736148567226,12.34846501,214.68,214.61,10.0]
[1736148567825,2.3297,214.67,214.63,2.3301]
[1736148568020,2.3297,214.67,214.61,10.0]
[1736148568926,12.34836501,214.68,214.64,2.33]
[1736148572231,12.34836501,214.68,214.65,2.3299]
[1736148572429,10.01876501,214.68,214.65,2.3299]
[1736148577542,2.68,214.68,214.62,7.33876501]
[1736148577743,2.68,214.7,214.64,7.33876501]
[1736148577942,2.68,214.7,214.66,7.33876501]
[1736148578646,2.68,214.7,214.65,7.33876501]
[1736148580144,7.33876501,214.71,214.69,2.3295]
[1736148583951,7.33876501,214.71,214.68,2.3295]
[1736148587648,10.01876501,214.71,214.69,2.3294]
[1736148588253,2.68,214.71,214.69,2.3294]
[1736148589256,2.68,214.71,214.7,2.3294]
[1736148589754,2.68,214.73,214.67,7.33876501]
[1736148590148,2.68,214.73,214.72,2.3291]
[1736148591347,7.33876501,214.74,214.71,2.3292]
[1736148591548,10.01876501,214.74,214.71,2.3292]
[1736148592454,2.3289,214.75,214.71,2.3292]
[1736148592658,2.68,214.74,214.71,2.3292]
[1736148592958,12.34766501,214.75,214.71,2.3292]
[1736148595060,2.329,214.74,214.71,2.3292]
[1736148602662,2.329,214.74,214.7,2.3293]
[1736148602858,3.49502096,214.8,214.7,7.33876501]
[1736148603170,2.3286,214.77,214.73,2.3289]
[1736148603467,5.0086,214.77,214.73,2.3289]
[1736148603665,3.49502096,214.82,214.72,7.33876501]
[1736148603855,2.68,214.81,214.74,7.33876501]
[1736148604259,5.0082,214.81,214.76,2.3287]
[1736148605163,2.68,214.81,214.76,7.33876501]
[1736148605369,7.33876501,214.84,214.78,7.33876501]
[1736148605573,10.01876501,214.84,214.78,7.33876501]
[1736148606267,10.01876501,214.84,214.69,2.68]
[1736148606464,7.33876501,214.82,214.69,2.68]
[1736148606771,2.3284,214.79,214.74,9.66756501]
[1736148607365,2.3284,214.79,214.75,2.3288]
[1736148608068,2.68,214.79,214.69,2.68]
[1736148608265,2.68,214.79,214.71,7.33876501]
[1736148608266,7.33876501,214.78,214.71,7.33876501]
[1736148608666,9.66736501,214.78,214.73,2.329]
[1736148608868,7.33876501,214.78,214.71,7.33876501]
[1736148609368,7.33876501,214.78,214.74,2.3288]
[1736148611375,7.33876501,214.78,214.75,2.3288]
[1736148612265,7.33876501,214.78,214.76,2.3287]
[1736148612973,10.01876501,214.79,214.73,7.33876501]
[1736148613171,10.01876501,214.79,214.76,2.3286]
[1736148613371,10.01876501,214.79,214.73,7.33876501]
[1736148613873,10.01876501,214.79,214.74,2.3288]
[1736148614073,10.01876501,214.79,214.73,7.33876501]
[1736148615077,10.01876501,214.79,214.76,2.3286]
[1736148615273,7.33876501,214.79,214.76,2.3286]
[1736148615868,2.68,214.8,214.76,2.3286]
[1736148616274,2.68,214.8,214.78,2.3285]
[1736148617265,2.68,214.8,214.76,2.3286]
[1736148617469,2.68,214.8,214.73,7.33876501]
[1736148618377,5.0083,214.8,214.75,2.3288]
[1736148618575,5.0083,214.8,214.73,7.33876501]
[1736148618576,7.33876501,214.79,214.73,7.33876501]
[1736148619371,7.33876501,214.79,214.76,2.3286]
[1736148621478,7.33876501,214.79,214.77,2.3286]
[1736148622079,2.68,214.8,214.77,2.3286]
[1736148623379,2.68,214.8,214.67,2.68]
[1736148623577,5.0083,214.8,214.76,2.3287]
[1736148624578,2.68,214.8,214.74,7.33876501]
[1736148624781,2.68,214.8,214.77,2.3285]
[1736148625979,2.68,214.8,214.78,2.3285]
[1736148626884,2.68,214.8,214.79,2.3284]
[1736148628980,7.33876501,214.81,214.79,2.3284]
[1736148629474,2.3279,214.84,214.76,7.33876501]
[1736148629679,2.68,214.84,214.78,7.33876501]
[1736148630180,2.68,214.84,214.82,2.328]
[1736148631686,4.3631,214.92,214.8,7.33876501]
[1736148631881,2.68,214.91,214.82,7.33876501]
[1736148632078,7.33876501,214.87,214.82,7.33876501]
[1736148632272,2.3274,214.88,214.73,4.3461]
[1736148632273,2.3274,214.88,214.84,2.3278]
[1736148632475,2.3273,214.89,214.82,7.33876501]
[1736148632675,9.66606501,214.89,214.82,7.33876501]
[1736148632883,7.33876501,214.87,214.77,2.3285]
[1736148633084,7.33876501,214.87,214.8,7.33876501]
[1736148633383,7.33876501,214.87,214.83,2.3279]
[1736148633983,5.0074,214.88,214.77,2.3286]
[1736148633984,9.66656501,214.85,214.77,2.3286]
[1736148634285,7.33876501,214.83,214.76,7.33876501]
[1736148634486,7.33876501,214.81,214.76,7.33876501]
[1736148635086,7.33876501,214.83,214.76,7.33876501]
[1736148635286,7.33876501,214.83,214.79,2.3283]
[1736148635589,10.01876501,214.83,214.76,7.33876501]
[1736148636085,10.01876501,214.83,214.73,7.0261]
[1736148636287,7.33876501,214.81,214.74,7.33876501]
[1736148636684,10.01876501,214.83,214.76,7.33876501]
[1736148637592,10.01876501,214.83,214.78,2.3285]
[1736148640097,10.01876501,214.83,214.76,7.33876501]
[1736148640298,7.33876501,214.81,214.74,7.33876501]
[1736148640600,7.33876501,214.79,214.73,4.3461]
[1736148640801,7.33876501,214.79,214.75,2.3288]
[1736148641707,7.33876501,214.77,214.73,2.3289]
[1736148642002,10.01876501,214.77,214.73,2.3289]
[1736148642399,10.01876501,214.77,214.74,2.3289]
[1736148642702,2.68,214.77,214.71,7.33876501]
[1736148642903,2.68,214.77,214.76,2.3287]
[1736148643100,2.68,214.77,214.67,4.112]
[1736148643404,2.68,214.77,214.71,7.33876501]
[1736148643598,10.01876501,214.77,214.71,7.33876501]
[1736148644403,12.34736501,214.77,214.73,2.3289]
[1736148645002,2.68,214.77,214.73,7.33876501]
[1736148645201,7.33876501,214.81,214.73,7.33876501]
[1736148645899,9.66696501,214.81,214.73,7.33876501]
[1736148647403,9.66696501,214.81,214.76,2.3287]
[1736148647606,2.3283,214.8,214.76,2.3287]
[1736148647936,7.33876501,214.81,214.67,4.112]
[1736148648235,7.33876501,214.79,214.71,7.33876501]
[1736148648531,5.0085,214.78,214.71,7.33876501]
[1736148649033,5.0085,214.78,214.73,2.329]
[1736148649231,5.0085,214.78,214.71,7.33876501]
[1736148649430,5.0085,214.78,214.73,2.329]
[1736148649629,5.0085,214.78,214.71,7.33876501]
[1736148650120,5.0085,214.78,214.74,2.3288]
[1736148650323,2.68,214.78,214.73,7.33876501]
[1736148651414,2.68,214.78,214.75,2.3287]
[1736148651610,2.3284,214.79,214.75,2.3287]
[1736148652309,2.68,214.8,214.73,7.33876501]
[1736148652506,2.68,214.8,214.75,7.33876501]
[1736148654011,5.0081,214.82,214.75,7.33876501]
[1736148654213,21.95280165,214.9,214.77,7.33876501]
[1736148654415,2.3279,214.84,214.77,7.33876501]
[1736148654612,5.0079,214.84,214.77,7.33876501]
[1736148655214,5.0079,214.84,214.79,2.3284]
[1736148655806,2.328,214.83,214.79,2.3284]
[1736148656006,7.33876501,214.83,214.72,2.68]
[1736148656215,7.33876501,214.83,214.74,7.33876501]
[1736148657214,2.3284,214.8,214.77,2.3286]
[1736148657915,2.3285,214.79,214.75,2.3287]
[1736148660318,2.3285,214.79,214.76,2.3287]
[1736148661822,7.33876501,214.81,214.76,2.3287]
[1736148661823,2.3283,214.8,214.76,2.3287]
[1736148664016,2.3282,214.81,214.77,2.3286]
[1736148664422,2.3282,214.81,214.75,7.33876501]
[1736148664623,2.3282,214.81,214.77,2.3286]
[1736148666121,2.3283,214.8,214.77,2.3286]
[1736148668327,10.01876501,214.82,214.77,2.3286]
[1736148668527,2.3282,214.81,214.77,2.3286]
[1736148668927,2.68,214.82,214.79,2.3284]
[1736148669133,2.68,214.82,214.77,7.33876501]
[1736148669955,2.68,214.82,214.79,7.33876501]
[1736148670453,5.0077,214.85,214.81,2.3281]
[1736148671146,5.0077,214.85,214.8,2.3283]
[1736148671449,9.66666501,214.84,214.8,2.3283]
[1736148671644,12.34666501,214.84,214.8,2.3283]
[1736148671952,2.3282,214.81,214.76,2.3287]
[1736148672244,7.33876501,214.82,214.74,2.9805]
[1736148672659,2.3285,214.79,214.75,2.3288]